bitfinex-derivatives/quotes_ETHF0:USTF0_20260118
["timestamp","ask_amount","ask_price","bid_price","bid_amount"]
[1768712483654,0.96330729,3314.0,3313.0,0.5]
[1768712483855,0.96330729,3313.9,3313.0,0.5]
[1768712484054,0.96330729,3313.8,3313.0,0.5]
[1768712484266,0.35749904,3314.1,3313.0,0.5]
[1768712484465,0.96330906,3314.0,3313.0,0.5]
[1768712484665,0.96330906,3313.9,3313.0,0.5]
[1768712484865,0.96330906,3313.8,3313.0,0.5]
[1768712485168,0.35749904,3314.1,3313.0,0.5]
[1768712485363,0.96334735,3314.0,3313.0,0.5]
[1768712485564,0.96334735,3313.9,3313.0,0.5]
[1768712485764,0.96334735,3313.8,3313.0,0.5]
[1768712486064,0.35749904,3314.1,3313.0,0.5]
[1768712486252,0.96339583,3314.0,3313.0,0.5]
[1768712486457,0.96339583,3313.9,3313.0,0.5]
[1768712486663,0.96339583,3313.8,3313.0,0.5]
[1768712486869,0.35749904,3314.1,3313.0,0.5]
[1768712487066,0.96345091,3314.0,3313.0,0.5]
[1768712487253,0.96345091,3313.9,3313.0,0.5]
[1768712487456,0.96345091,3313.8,3313.0,0.5]
[1768712487664,0.9723433,3314.4,3313.0,0.5]
[1768712487862,0.96353343,3314.3,3313.0,0.5]
[1768712488061,0.96353343,3314.2,3313.0,0.5]
[1768712488263,0.96353343,3314.1,3313.4,0.5]
[1768712488466,0.96353343,3314.0,3313.4,0.5]
[1768712488666,0.96353343,3313.9,3313.4,0.5]
[1768712488965,0.96353343,3313.8,3313.4,0.5]
[1768712489165,0.9723433,3314.4,3313.4,0.5]
[1768712489369,0.96371565,3314.3,3313.4,0.5]
[1768712489564,0.96371565,3314.2,3313.4,0.5]
[1768712489766,0.96371565,3314.1,3313.4,0.5]
[1768712489964,0.96371565,3314.0,3313.4,0.5]
[1768712490161,0.96371565,3313.9,3313.4,0.5]
[1768712490367,0.96371565,3313.8,3313.4,0.5]
[1768712490567,0.9723433,3314.4,3313.4,0.5]
[1768712490769,0.96371334,3314.3,3313.4,0.5]
[1768712490970,0.96371334,3314.2,3313.4,0.5]
[1768712491167,0.96371334,3314.1,3313.4,0.5]
[1768712491367,0.96371334,3314.0,3313.4,0.5]
[1768712491571,0.96371334,3313.9,3313.4,0.5]
[1768712491771,0.96371334,3313.8,3313.4,0.5]
[1768712492067,0.9723433,3314.4,3313.4,0.5]
[1768712492268,0.96371415,3314.3,3313.4,0.5]
[1768712492463,0.96371415,3314.2,3313.4,0.5]
[1768712492665,0.96371415,3314.1,3313.4,0.5]
[1768712492866,0.96371415,3314.0,3313.4,0.5]
[1768712493068,0.96371415,3313.9,3313.4,0.5]
[1768712493267,0.96371415,3313.8,3313.4,0.5]
[1768712493474,0.9723433,3314.4,3313.4,0.5]
[1768712493673,0.96371009,3314.3,3313.4,0.5]
[1768712493968,0.96371009,3314.2,3313.4,0.5]
[1768712494175,0.96371009,3314.1,3313.4,0.5]
[1768712494472,0.96371009,3314.0,3313.4,0.5]
[1768712494673,0.96371009,3313.9,3313.4,0.5]
[1768712494868,0.96371009,3313.8,3313.4,0.5]
[1768712495073,0.9723433,3314.4,3313.4,0.5]
[1768712495275,0.96370857,3314.3,3313.4,0.5]
[1768712495476,0.96370857,3314.2,3313.4,0.5]
[1768712495677,0.96370857,3314.1,3313.4,0.5]
[1768712495881,0.96370857,3314.0,3313.4,0.5]
[1768712496080,0.96370857,3313.9,3313.4,0.5]
[1768712496280,0.96370857,3313.8,3313.4,0.5]
[1768712496578,0.9723433,3314.4,3313.4,0.5]
[1768712496887,0.96370608,3314.3,3313.4,0.5]
[1768712497086,0.96370608,3314.2,3313.4,0.5]
[1768712497285,0.96370608,3314.1,3313.4,0.5]
[1768712497486,0.96370608,3314.0,3313.4,0.5]
[1768712497687,0.96370608,3313.9,3313.4,0.5]
[1768712497888,0.96370608,3313.8,3313.4,0.5]
[1768712498090,0.9723433,3314.4,3313.4,0.5]
[1768712498389,0.96369243,3314.3,3313.4,0.5]
[1768712498581,0.96369243,3314.2,3313.4,0.5]
[1768712498781,0.96369243,3314.1,3313.4,0.5]
[1768712498981,0.96369243,3314.0,3313.4,0.5]
[1768712499186,0.96369243,3313.9,3313.4,0.5]
[1768712499488,0.96369243,3313.8,3313.4,0.5]
[1768712499686,0.9723433,3314.4,3313.4,0.5]
[1768712499876,0.96369229,3314.3,3313.4,0.5]
[1768712500081,0.96369229,3314.2,3313.4,0.5]
[1768712500377,0.96369229,3314.1,3313.4,0.5]
[1768712500579,0.96369229,3314.0,3313.4,0.5]
[1768712500779,0.96369229,3313.9,3313.4,0.5]
[1768712500990,0.9723433,3314.4,3313.4,0.5]
[1768712501294,0.96369392,3314.3,3313.4,0.5]
[1768712501490,0.96369392,3314.2,3313.4,0.5]
[1768712501682,0.96369392,3314.1,3313.4,0.5]
[1768712501883,0.96369392,3314.0,3313.4,0.5]
[1768712502091,0.9723433,3314.4,3313.4,0.5]
[1768712502289,0.96369643,3314.3,3313.4,0.5]
[1768712502589,0.96369643,3314.2,3313.4,0.5]
[1768712502782,0.96369643,3314.1,3313.4,0.5]
[1768712503092,0.96369643,3314.0,3313.4,0.5]
[1768712503387,0.9723433,3314.4,3313.4,0.5]
[1768712503693,0.96369997,3314.3,3313.4,0.5]
[1768712503891,0.96369997,3314.2,3313.4,0.5]
[1768712504086,0.96369997,3314.1,3312.8,0.1]
[1768712504293,0.96369997,3314.0,3312.8,0.1]
[1768712504591,1.26460222,3314.4,3312.8,0.1]
[1768712504791,0.96369803,3314.3,3312.8,0.1]
[1768712504991,0.96369803,3314.2,3312.8,0.1]
[1768712505291,0.96369803,3314.1,3312.8,0.1]
[1768712505491,0.96369803,3314.0,3312.8,0.1]
[1768712505693,1.26460222,3314.4,3312.8,0.1]
[1768712505886,0.96369728,3314.3,3312.8,0.1]
[1768712506190,0.96369728,3314.2,3312.8,0.1]
[1768712506390,0.96369728,3314.1,3312.8,0.1]
[1768712506590,0.96369728,3314.0,3312.8,0.1]
[1768712506784,1.26460222,3314.4,3312.8,0.1]
[1768712506984,0.96406261,3314.3,3312.8,0.1]
[1768712507190,0.96406261,3314.2,3312.8,0.1]
[1768712507389,0.96406261,3314.1,3312.8,0.1]
[1768712507578,0.96406261,3314.0,3312.8,0.1]
[1768712507784,1.26460222,3314.4,3312.8,0.1]
[1768712507983,0.96406177,3314.3,3312.8,0.1]
[1768712508293,0.96406177,3314.2,3312.8,0.1]
[1768712508491,0.96406177,3314.1,3312.8,0.1]
[1768712508693,0.96406177,3314.0,3312.8,0.1]
[1768712508895,1.26460222,3314.4,3312.8,0.1]
[1768712509090,0.96401537,3314.3,3312.8,0.1]
[1768712509394,0.97264715,3313.8,3312.8,0.1]
[1768712516998,0.97264715,3313.5,3312.8,0.1]
[1768712517200,0.97264715,3313.2,3312.5,2.44714824]
[1768712517503,0.97601347,3313.2,3312.5,2.44714824]
[1768712521204,0.00336632,3313.2,3312.5,2.44714824]
[1768712524805,0.00336632,3313.2,3312.3,0.26881177]
[1768712525001,0.00336632,3313.2,3312.4,0.27257108]
[1768712716014,1.12374305,3314.1,3312.4,0.27257108]
[1768712716212,1.24099119,3314.0,3312.4,0.27257108]
[1768712716511,1.24099119,3313.9,3312.4,0.27257108]
[1768712716713,0.96647227,3313.8,3312.4,0.27257108]
[1768712716910,0.96647227,3313.7,3312.4,0.27257108]
[1768712717210,0.96647227,3313.6,3312.4,0.27257108]
[1768712717410,0.00345356,3313.7,3312.4,0.27257108]
[1768712717610,0.96369528,3313.6,3312.4,0.27257108]
[1768712717813,0.00345356,3313.7,3312.4,0.27257108]
[1768712718012,0.96369736,3313.6,3312.4,0.27257108]
[1768712718316,0.00345356,3313.7,3312.4,0.27257108]
[1768712718512,0.96370061,3313.6,3312.4,0.27257108]
[1768712718811,0.00345356,3313.7,3312.4,0.27257108]
[1768712719012,0.96370013,3313.6,3312.4,0.27257108]
[1768712719310,0.00345356,3313.7,3312.4,0.27257108]
[1768712719513,0.9637076,3313.6,3312.4,0.27257108]
[1768712719708,0.00345356,3313.7,3312.4,0.27257108]
[1768712719907,0.96370758,3313.6,3312.4,0.27257108]
[1768712720113,0.00345356,3313.7,3312.4,0.27257108]
[1768712720307,0.96370296,3313.6,3312.4,0.27257108]
[1768712720509,0.00345356,3313.7,3312.4,0.27257108]
[1768712720713,0.96370376,3313.6,3312.4,0.27257108]
[1768712720915,0.00345356,3313.7,3312.4,0.27257108]
[1768712721108,0.96370409,3313.6,3312.4,0.27257108]
[1768712721309,0.00345356,3313.7,3312.4,0.27257108]
[1768712721606,0.96370831,3313.6,3312.4,0.27257108]
[1768712721903,0.00345356,3313.7,3312.4,0.27257108]
[1768712722108,0.96370771,3313.6,3312.4,0.27257108]
[1768712722408,0.00345356,3313.7,3312.4,0.27257108]
[1768712722608,0.96370775,3313.6,3312.4,0.27257108]
[1768712722810,0.00345356,3313.7,3312.4,0.27257108]
[1768712723011,0.96370318,3313.6,3312.4,0.27257108]
[1768712723206,0.00345356,3313.7,3312.4,0.27257108]
[1768712723403,0.96370254,3313.6,3312.4,0.27257108]
[1768712723609,0.00345356,3313.7,3312.4,0.27257108]
[1768712723808,0.96370236,3313.6,3312.4,0.27257108]
[1768712724005,0.00345356,3313.7,3312.4,0.27257108]
[1768712724225,0.96370087,3313.6,3312.4,0.27257108]
[1768712724516,0.00345356,3313.7,3312.4,0.27257108]
[1768712724715,0.96371077,3313.6,3312.4,0.27257108]
[1768712724918,0.00345356,3313.7,3312.4,0.27257108]
[1768712725118,0.96369394,3313.6,3312.4,0.27257108]
[1768712725319,0.00345356,3313.7,3312.4,0.27257108]
[1768712725516,0.96365912,3313.6,3312.4,0.27257108]
[1768712725718,0.00345356,3313.7,3312.4,0.27257108]
[1768712725919,0.96365826,3313.6,3312.4,0.27257108]
[1768712726122,0.00345356,3313.7,3312.4,0.27257108]
[1768712726312,0.96364272,3313.6,3312.4,0.27257108]
[1768712726513,0.00345356,3313.7,3312.4,0.27257108]
[1768712726716,0.96364277,3313.6,3312.4,0.27257108]
[1768712726916,0.00345356,3313.7,3312.4,0.27257108]
[1768712727118,0.96362463,3313.6,3312.4,0.27257108]
[1768712727417,0.00345356,3313.7,3312.4,0.27257108]
[1768712727617,0.96354168,3313.6,3312.4,0.27257108]
[1768712727820,0.00345356,3313.7,3312.4,0.27257108]
[1768712728121,0.96354165,3313.6,3312.4,0.27257108]
[1768712728324,0.00345356,3313.7,3312.4,0.27257108]
[1768712728511,0.96351719,3313.6,3312.4,0.27257108]
[1768712728716,0.00345356,3313.7,3312.4,0.27257108]
[1768712728910,0.96351735,3313.6,3312.4,0.27257108]
[1768712729114,0.00345356,3313.7,3312.4,0.27257108]
[1768712729308,0.96350787,3313.6,3312.4,0.27257108]
[1768712729515,0.00345356,3313.7,3312.4,0.27257108]
[1768712735228,0.00345356,3313.7,3312.5,0.1512333]
[1768712749237,0.00345356,3313.7,3312.5,0.3022233]
[1768712750237,0.00345356,3313.7,3312.6,0.1512333]
[1768712751339,0.00345356,3313.7,3312.9,0.1512333]
[1768712783672,0.97244843,3314.2,3313.0,0.14396128]
[1768712783863,0.96970622,3314.1,3313.0,0.14396128]
[1768712784066,0.96970622,3314.0,3313.0,0.14396128]
[1768712784369,0.97244843,3314.2,3313.0,0.14396128]
[1768712784558,0.9696959,3314.1,3313.0,0.14396128]
[1768712784762,0.9696959,3314.0,3313.0,0.14396128]
[1768712784969,0.00215409,3314.1,3313.0,0.14396128]
[1768712785266,0.96969584,3314.0,3313.0,0.14396128]
[1768712785466,0.00215409,3314.1,3313.0,0.14396128]
[1768712785671,0.96968788,3314.0,3313.0,0.14396128]
[1768712785864,0.00215409,3314.1,3313.0,0.14396128]
[1768712786066,0.96968799,3314.0,3313.0,0.14396128]
[1768712786265,0.00215409,3314.1,3313.0,0.14396128]
[1768712786466,0.96968326,3314.0,3313.0,0.14396128]
[1768712786670,0.00215409,3314.1,3313.0,0.14396128]
[1768712786870,0.96968231,3314.0,3313.0,0.14396128]
[1768712787070,0.00215409,3314.1,3313.0,0.14396128]
[1768712787271,0.96969132,3314.0,3313.0,0.14396128]
[1768712787572,0.00215409,3314.1,3313.0,0.14396128]
[1768712787768,0.96968263,3314.0,3313.0,0.14396128]
[1768712787970,0.00215409,3314.1,3313.0,0.14396128]
[1768712788170,0.9696847,3314.0,3313.0,0.14396128]
[1768712788373,0.00215409,3314.1,3313.0,0.14396128]
[1768712788580,0.96967609,3314.0,3313.0,0.14396128]
[1768712788769,0.00215409,3314.1,3313.0,0.14396128]
[1768712788968,0.96967606,3314.0,3313.0,0.14396128]
[1768712789267,0.00215409,3314.1,3313.0,0.14396128]
[1768712789471,0.9695629,3314.0,3313.0,0.14396128]
[1768712789670,0.00215409,3314.1,3313.0,0.14396128]
[1768712789869,0.96954361,3314.0,3313.0,0.14396128]
[1768712790169,0.00215409,3314.1,3313.0,0.14396128]
[1768712790368,0.96953306,3314.0,3313.0,0.14396128]
[1768712790572,0.00215409,3314.1,3313.0,0.14396128]
[1768712790772,0.96953307,3314.0,3313.0,0.14396128]
[1768712790974,0.00215409,3314.1,3313.0,0.14396128]
[1768712791175,0.96953305,3314.0,3313.0,0.14396128]
[1768712791377,0.00215409,3314.1,3313.0,0.14396128]
[1768712791571,0.9695259,3314.0,3313.0,0.14396128]
[1768712791875,0.00215409,3314.1,3313.0,0.14396128]
[1768712792076,0.96952542,3314.0,3313.0,0.14396128]
[1768712792275,0.00215409,3314.1,3313.0,0.14396128]
[1768712792476,0.96952103,3314.0,3313.0,0.14396128]
[1768712792676,0.00215409,3314.1,3313.0,0.14396128]
[1768712792885,0.96952104,3314.0,3313.0,0.14396128]
[1768712793069,0.00215409,3314.1,3313.0,0.14396128]
[1768712793269,0.96952008,3314.0,3313.0,0.14396128]
[1768712793466,0.00215409,3314.1,3313.0,0.14396128]
[1768712793670,0.96951741,3314.0,3313.0,0.14396128]
[1768712793972,0.00215409,3314.1,3313.0,0.14396128]
[1768712794266,0.96951715,3314.0,3313.0,0.14396128]
[1768712794467,0.00215409,3314.1,3313.0,0.14396128]
[1768712794679,0.9695159,3314.0,3313.0,0.14396128]
[1768712794880,0.00215409,3314.1,3313.0,0.14396128]
[1768712795176,0.9695159,3314.0,3313.0,0.14396128]
[1768712795376,0.00215409,3314.1,3313.0,0.14396128]
[1768712795578,0.96951423,3314.0,3313.0,0.14396128]
[1768712795776,0.00215409,3314.1,3313.0,0.14396128]
[1768712795978,0.96951423,3314.0,3313.0,0.14396128]
[1768712796178,0.00215409,3314.1,3313.0,0.14396128]
[1768712796377,0.96951244,3314.0,3313.0,0.14396128]
[1768712796676,0.00215409,3314.1,3313.0,0.14396128]
[1768712796880,0.96951244,3314.0,3313.0,0.14396128]
[1768712797078,0.00215409,3314.1,3313.0,0.14396128]
[1768712797382,0.96951244,3314.0,3313.0,0.14396128]
[1768712797678,0.00215409,3314.1,3313.0,0.14396128]
[1768712797879,0.96951234,3314.0,3313.0,0.14396128]
[1768712798066,0.00215409,3314.1,3313.0,0.14396128]
[1768712798270,0.96951234,3314.0,3313.0,0.14396128]
[1768712798470,0.00215409,3314.1,3313.0,0.14396128]
[1768712798670,0.96951247,3314.0,3313.0,0.14396128]
[1768712798884,0.00215409,3314.1,3313.0,0.14396128]
[1768712799081,0.96951248,3314.0,3313.0,0.14396128]
[1768712799273,0.00215409,3314.1,3313.0,0.14396128]
[1768712799473,0.96951348,3314.0,3313.0,0.14396128]
[1768712799677,0.00215409,3314.1,3313.0,0.14396128]
[1768712799977,0.96951316,3314.0,3313.0,0.14396128]
[1768712800171,0.00215409,3314.1,3313.0,0.14396128]
[1768712800466,0.96951613,3314.0,3313.0,0.14396128]
[1768712800670,0.00215409,3314.1,3313.0,0.14396128]
[1768712800870,0.96951613,3314.0,3313.0,0.14396128]
[1768712801068,0.96951445,3313.9,3313.0,0.14396128]
[1768712801374,0.00215409,3314.1,3313.2,0.1411265]
[1768712801580,0.96952248,3314.0,3313.2,0.1411265]
[1768712801782,0.96952248,3313.9,3313.2,0.1411265]
[1768712801983,0.00215409,3314.1,3313.2,0.1411265]
[1768712802173,0.96952269,3314.0,3313.2,0.1411265]
[1768712802374,0.96952269,3313.9,3313.2,0.1411265]
[1768712802579,0.00215409,3314.1,3313.2,0.1411265]
[1768712802774,0.96953689,3314.0,3313.2,0.1411265]
[1768712802976,0.00215409,3314.1,3313.2,0.1411265]
[1768712840497,0.97255127,3314.0,3313.2,0.1411265]
[1768712840698,0.97255127,3313.9,3312.6,0.146]
[1768712840896,0.97255127,3313.8,3312.6,0.146]
[1768712841105,0.97255127,3313.7,3312.6,0.146]
[1768712841401,0.97230715,3314.0,3312.6,0.146]
[1768712841601,0.97195654,3313.9,3312.4,0.00375931]
[1768712841810,0.97230715,3314.0,3312.4,0.00375931]
[1768712841811,0.97195654,3313.8,3312.4,0.00375931]
[1768712842000,0.97230715,3314.0,3312.4,0.00375931]
[1768712842193,0.97195584,3313.9,3312.4,0.00375931]
[1768712842395,0.97195584,3313.8,3312.4,0.00375931]
[1768712842591,0.97230715,3314.0,3312.4,0.00375931]
[1768712842796,0.9717672,3313.9,3312.5,0.13242957]
[1768712842998,0.9717672,3313.8,3312.5,0.13242957]
[1768712843198,0.97230715,3314.0,3312.5,0.13242957]
[1768712843404,0.97161929,3313.9,3312.5,0.13242957]
[1768712843606,0.97161929,3313.8,3312.5,0.13242957]
[1768712843904,0.97230715,3314.0,3312.5,0.13242957]
[1768712844107,0.97162658,3313.9,3312.5,0.13242957]
[1768712844298,0.97162658,3313.8,3312.5,0.13242957]
[1768712844498,0.97230715,3314.0,3312.5,0.13242957]
[1768712844698,0.97143789,3313.9,3312.5,0.13242957]
[1768712844896,0.97143789,3313.8,3312.5,0.13242957]
[1768712845106,0.97230715,3314.0,3312.5,0.13242957]
[1768712845306,0.97131904,3313.9,3312.5,0.13242957]
[1768712845606,0.97131904,3313.8,3312.5,0.13242957]
[1768712845807,0.97230715,3314.0,3312.5,0.13242957]
[1768712846007,0.97130272,3313.9,3312.5,0.13242957]
[1768712846208,0.97130272,3313.8,3312.5,0.13242957]
[1768712846408,0.97230715,3314.0,3312.5,0.13242957]
[1768712846708,0.9711929,3313.9,3312.5,0.13242957]
[1768712846908,0.9711929,3313.8,3312.5,0.13242957]
[1768712847206,0.97230715,3314.0,3312.5,0.13242957]
[1768712847405,0.97110234,3313.9,3312.5,0.13242957]
[1768712847602,0.97110234,3313.8,3312.5,0.13242957]
[1768712847799,0.97230715,3314.0,3312.5,0.13242957]
[1768712848004,0.9711023,3313.9,3312.5,0.13242957]
[1768712848196,0.9711023,3313.8,3312.5,0.13242957]
[1768712848394,0.97230715,3314.0,3312.5,0.13242957]
[1768712848598,0.97102992,3313.9,3312.5,0.13242957]
[1768712848799,0.97102992,3313.8,3312.5,0.13242957]
[1768712849098,0.97230715,3314.0,3312.5,0.13242957]
[1768712849300,0.9709897,3313.9,3312.5,0.13242957]
[1768712849500,0.9709897,3313.8,3312.5,0.13242957]
[1768712849700,0.97230715,3314.0,3312.5,0.13242957]
[1768712850012,0.97098075,3313.9,3312.5,0.13242957]
[1768712850206,0.97098075,3313.8,3312.5,0.13242957]
[1768712850406,0.97230715,3314.0,3312.5,0.13242957]
[1768712850608,0.97094863,3313.9,3312.5,0.13242957]
[1768712850804,0.97094863,3313.8,3312.5,0.13242957]
[1768712851004,0.97230715,3314.0,3312.5,0.13242957]
[1768712851209,0.97094881,3313.9,3312.5,0.13242957]
[1768712851410,0.97094881,3313.8,3312.5,0.13242957]
[1768712851602,0.97230715,3314.0,3312.5,0.13242957]
[1768712851802,0.970968,3313.9,3312.5,0.13242957]
[1768712852098,0.970968,3313.8,3312.5,0.13242957]
[1768712852302,0.97230715,3314.0,3312.5,0.13242957]
[1768712852509,0.97099371,3313.9,3312.5,0.13242957]
[1768712852808,0.97099371,3313.8,3312.5,0.13242957]
[1768712853107,0.97230715,3314.0,3312.5,0.13242957]
[1768712853407,0.97100984,3313.9,3312.5,0.13242957]
[1768712853707,0.97100984,3313.8,3312.5,0.13242957]
[1768712854009,0.97230715,3314.0,3312.5,0.13242957]
[1768712854307,0.97102241,3313.9,3312.5,0.13242957]
[1768712854607,0.97102241,3313.8,3312.5,0.13242957]
[1768712854809,0.97230715,3314.0,3312.5,0.13242957]
[1768712854996,0.97117075,3313.9,3312.5,0.13242957]
[1768712855201,0.97117075,3313.8,3312.5,0.13242957]
[1768712855402,0.97230715,3314.0,3312.5,0.13242957]
[1768712855598,0.97124601,3313.9,3312.5,0.13242957]
[1768712855798,0.97124601,3313.8,3312.5,0.13242957]
[1768712856002,0.97230715,3314.0,3312.5,0.13242957]
[1768712856212,0.9712461,3313.9,3312.5,0.13242957]
[1768712856412,0.9712461,3313.8,3312.5,0.13242957]
[1768712856709,0.97119785,3313.7,3312.5,0.13242957]
[1768712856913,1.12036051,3314.0,3312.5,0.13242957]
[1768712857210,0.97120534,3313.9,3312.5,0.13242957]
[1768712857515,0.97120534,3313.8,3312.5,0.13242957]
[1768712857716,0.97120534,3313.7,3312.5,0.13242957]
[1768712857912,1.12036051,3314.0,3312.5,0.13242957]
[1768712858210,0.97117205,3313.9,3312.5,0.13242957]
[1768712858410,0.97117205,3313.8,3312.5,0.13242957]
[1768712858609,0.97117205,3313.7,3312.5,0.13242957]
[1768712858916,1.12036051,3314.0,3312.5,0.13242957]
[1768712859107,0.97115295,3313.9,3312.5,0.13242957]
[1768712859308,0.97115295,3313.8,3312.5,0.13242957]
[1768712859510,1.12036051,3314.0,3312.5,0.13242957]
[1768712859511,0.97115295,3313.7,3312.5,0.13242957]
[1768712859710,1.12036051,3314.0,3312.5,0.13242957]
[1768712859898,0.97114479,3313.9,3312.5,0.13242957]
[1768712860103,0.97114479,3313.8,3312.5,0.13242957]
[1768712860299,0.97114479,3313.7,3312.5,0.13242957]
[1768712860502,1.12036051,3314.0,3312.5,0.13242957]
[1768712860709,0.97114959,3313.9,3312.5,0.13242957]
[1768712860903,0.97114959,3313.8,3312.5,0.13242957]
[1768712861113,0.97114959,3313.7,3312.5,0.13242957]
[1768712861299,1.12036051,3314.0,3312.5,0.13242957]
[1768712861507,0.9711653,3313.9,3312.5,0.13242957]
[1768712861701,0.9711653,3313.8,3312.5,0.13242957]
[1768712861908,0.9711653,3313.7,3312.5,0.13242957]
[1768712862215,1.12036051,3314.0,3312.5,0.13242957]
[1768712862408,0.97119576,3313.9,3312.5,0.13242957]
[1768712862610,0.97119576,3313.8,3312.5,0.13242957]
[1768712862913,0.97119576,3313.7,3312.5,0.13242957]
[1768712863112,1.12036051,3314.0,3312.5,0.13242957]
[1768712863312,0.97123813,3313.9,3312.5,0.13242957]
[1768712863513,0.97123813,3313.8,3312.5,0.13242957]
[1768712863814,0.97123813,3313.7,3312.5,0.13242957]
[1768712864010,1.12036051,3314.0,3312.5,0.13242957]
[1768712864207,0.97125669,3313.9,3312.5,0.13242957]
[1768712864408,0.97125669,3313.8,3312.5,0.13242957]
[1768712864608,0.97125669,3313.7,3312.5,0.13242957]
[1768712864819,1.12036051,3314.0,3312.5,0.13242957]
[1768712865117,0.97131652,3313.9,3312.5,0.13242957]
[1768712865415,0.97131652,3313.8,3312.5,0.13242957]
[1768712865609,0.97131652,3313.7,3312.5,0.13242957]
[1768712865809,0.97131652,3313.6,3312.5,0.13242957]
[1768712866009,1.12036051,3314.0,3312.5,0.13242957]
[1768712866209,0.97135956,3313.9,3312.5,0.13242957]
[1768712866513,0.97135956,3313.8,3312.5,0.13242957]
[1768712866714,0.97135956,3313.7,3312.5,0.13242957]
[1768712866914,0.97135956,3313.6,3312.5,0.13242957]
[1768712867217,1.12036051,3314.0,3312.5,0.13242957]
[1768712867416,0.97889656,3313.9,3312.5,0.13242957]
[1768712867606,0.97889656,3313.8,3312.5,0.13242957]
[1768712867802,0.97889656,3313.7,3312.5,0.13242957]
[1768712868003,0.97889656,3313.6,3312.5,0.13242957]
[1768712868208,0.97901259,3313.5,3312.5,0.13242957]
[1768712868507,1.12036051,3314.0,3312.5,0.13242957]
[1768712868710,0.97901265,3313.9,3312.5,0.13242957]
[1768712868906,0.97901265,3313.8,3312.5,0.13242957]
[1768712869210,0.97901265,3313.7,3312.5,0.13242957]
[1768712869419,0.97901265,3313.6,3312.5,0.13242957]
[1768712869717,0.97901265,3313.5,3312.5,0.13242957]
[1768712869917,1.12036051,3314.0,3312.5,0.13242957]
[1768712870216,0.97917246,3313.9,3312.5,0.13242957]
[1768712870420,0.97917246,3313.8,3312.5,0.13242957]
[1768712870612,0.97917246,3313.7,3312.5,0.13242957]
[1768712870813,0.97917246,3313.6,3312.5,0.13242957]
[1768712871121,0.97917246,3313.5,3312.5,0.13242957]
[1768712871311,1.12036051,3314.0,3312.5,0.13242957]
[1768712871512,0.97939025,3313.9,3312.5,0.13242957]
[1768712871713,0.97939025,3313.8,3312.5,0.13242957]
[1768712872019,0.97939025,3313.7,3312.4,0.00375931]
[1768712872218,0.97939025,3313.6,3312.4,0.00375931]
[1768712872423,0.97939025,3313.5,3312.4,0.00375931]
[1768712872719,1.12036051,3314.0,3312.4,0.00375931]
[1768712872920,0.97938518,3313.9,3312.4,0.00375931]
[1768712873122,0.97938518,3313.8,3312.4,0.00375931]
[1768712873322,0.97938518,3313.7,3312.4,0.00375931]
[1768712873515,0.97938518,3313.6,3312.4,0.00375931]
[1768712873715,0.97938518,3313.5,3312.4,0.00375931]
[1768712873917,1.12036051,3314.0,3312.4,0.00375931]
[1768712874115,0.97939068,3313.9,3312.4,0.00375931]
[1768712874316,0.97939068,3313.8,3312.4,0.00375931]
[1768712874516,0.97939068,3313.7,3312.4,0.00375931]
[1768712874725,0.97939068,3313.6,3312.4,0.00375931]
[1768712874924,0.97939068,3313.5,3312.4,0.00375931]
[1768712875124,1.12036051,3314.0,3312.4,0.00375931]
[1768712875326,0.97283423,3313.4,3312.4,0.00375931]
[1768712877627,0.97283423,3313.2,3312.4,0.00375931]
[1768712881435,0.14872832,3313.7,3312.4,0.00375931]
[1768712881636,0.97283423,3313.4,3312.4,0.00375931]
[1768712882444,0.00215409,3314.1,3312.6,0.97283423]
[1768712882640,0.97953007,3314.0,3313.2,0.97283423]
[1768712882943,0.00215409,3314.1,3313.0,0.1474895]
[1768712883128,0.97967138,3314.0,3313.2,0.97283423]
[1768712883332,0.00215409,3314.1,3313.2,0.97283423]
[1768712885046,0.00215409,3314.1,3313.0,1.12032373]
[1768712885747,0.00215409,3314.1,3312.8,0.97283423]
[1768712888747,0.97283423,3313.6,3312.7,0.1474895]
[1768712889150,0.97283423,3313.8,3312.7,0.1474895]
[1768712890246,0.97283423,3314.0,3312.7,0.1474895]
[1768712890950,0.97283423,3313.8,3312.7,0.1474895]
[1768712894151,0.97283423,3314.0,3312.7,0.1474895]
[1768712895946,0.97283423,3313.5,3312.6,0.15099]
[1768712897053,0.15088241,3314.1,3312.6,0.15099]
[1768712897054,0.97283423,3313.7,3312.6,0.15099]
[1768712899651,0.97283423,3313.3,3312.4,0.00375931]
[1768712900952,0.97283423,3313.5,3312.4,0.00375931]
[1768712903853,0.97283423,3313.2,3312.4,0.00375931]
[1768712904955,0.97283423,3313.2,3311.9,0.15102]
[1768712906064,0.97283423,3313.2,3311.9,0.15432792]
[1768712906258,0.97283423,3312.9,3311.9,0.15432792]
[1768712906457,0.15443821,3313.5,3311.9,0.15432792]
[1768712906657,0.97969941,3313.4,3312.3,0.97283423]
[1768712906862,0.15443821,3313.5,3312.3,0.97283423]
[1768712907162,0.97969735,3313.4,3312.3,0.97283423]
[1768712907361,0.15443821,3313.5,3312.3,0.97283423]
[1768712907556,0.97961728,3313.4,3312.3,0.97283423]
[1768712907756,0.15443821,3313.5,3312.3,0.97283423]
[1768712908057,0.97961735,3313.4,3312.3,0.97283423]
[1768712908260,0.15443821,3313.5,3312.3,0.97283423]
[1768712908460,0.97958605,3313.4,3312.3,0.97283423]
[1768712908663,0.97283423,3313.7,3312.3,0.97283423]
[1768712908863,0.97961072,3313.6,3312.3,0.97283423]
[1768712909065,0.97961072,3313.5,3312.3,0.97283423]
[1768712909364,0.97283423,3313.7,3312.3,0.97283423]
[1768712909565,0.97954099,3313.6,3312.3,0.97283423]
[1768712909763,0.97954099,3313.5,3312.1,0.15256331]
[1768712909957,0.97283423,3313.7,3312.2,0.97283423]
[1768712910158,0.97954235,3313.6,3312.2,0.97283423]
[1768712910454,0.97954235,3313.5,3312.2,0.97283423]
[1768712910657,0.97283423,3313.7,3312.2,0.97283423]
[1768712910858,0.97950479,3313.6,3312.2,0.97283423]
[1768712911158,0.97950479,3313.5,3312.2,0.97283423]
[1768712911359,0.97283423,3313.7,3312.2,0.97283423]
[1768712911563,0.97945198,3313.6,3312.2,0.97283423]
[1768712911763,0.97945198,3313.5,3312.2,0.97283423]
[1768712911965,0.97283423,3313.7,3312.2,0.97283423]
[1768712912163,0.97945182,3313.6,3312.2,0.97283423]
[1768712912362,0.97945182,3313.5,3312.2,1.12539754]
[1768712912664,0.97283423,3313.7,3312.2,1.12539754]
[1768712912862,0.97941022,3313.6,3312.2,1.12539754]
[1768712913064,0.97941022,3313.5,3312.2,1.12539754]
[1768712913266,0.97283423,3313.4,3311.9,1.12716215]
[1768712913465,0.97283423,3313.2,3311.9,0.15432792]
[1768712923875,0.15267971,3313.4,3311.9,0.15432792]